fUSD/lending_fUSD_20250915
["ID","MTS","AMOUNT","RATE_DAILY","PERIOD"]
[385555275,1757894498264,231.55,0.00012568,2]
[385555276,1757894498432,231.55,0.00013229,2]
[385555277,1757894498677,231.55,0.00013891,2]
[385555278,1757894498927,231.55,0.00014552,2]
[385555279,1757894499148,231.55,0.00015214,2]
[385555280,1757894499373,231.55,0.00015875,2]
[385555281,1757894499581,231.55,0.00016537,2]
[385555282,1757894499780,231.55,0.00017198,2]
[385555283,1757894499999,231.55,0.0001786,2]
[385555284,1757894500204,231.55,0.00018521,2]
[385555285,1757894518587,3000.0,0.000302,120]
[385555286,1757894654128,2000.0,0.000302,120]
[385555287,1757894712093,-200.0,0.00019183,2]
[385555288,1757894759391,-31.55,0.00019183,2]
[385555289,1757894759412,-31.55,0.00019513,2]
[385555290,1757894759428,-89.03742113,0.00019513,2]
[385555291,1757894806717,-70.58742113,0.00019513,2]
[385555292,1757894806730,-58.82515774,0.00019513,2]
[385555293,1757894806742,-70.58742113,0.00019844,2]
[385555294,1757894853998,-160.96257887,0.00019844,2]
[385555295,1757894854021,-160.96257887,0.00020506,2]
[385555296,1757894854040,-0.68554226,0.00020506,2]
[385555297,1757894901208,-69.90187887,0.00020506,2]
[385555298,1757894901231,-69.90187887,0.00021,2]
[385555299,1757894901250,-194.74353816,0.00021,2]
[385555300,1757894949136,-96.92554585,0.00021101,2]
[385555301,1757894949151,-153.07445415,0.00021101,2]
[385555302,1757894949163,-96.92554585,0.00021167,2]
[385555304,1757894997948,-134.62445415,0.00021167,2]
[385555305,1757894997967,-134.62445415,0.00021829,2]
[385555306,1757894997982,-90.51288274,0.00021829,2]
[385555315,1757895032409,-6.41266311,0.00021829,2]
[385555316,1757895032418,-194.35542099,0.00022067,2]
[385555317,1757895032428,-506.22254784,0.0002213,2]
[385555318,1757895032439,-402.09617216,0.0002213,2]
[385555319,1757895032449,-277.35679052,0.00022167,2]
[385555320,1757895032459,-908.31873,0.0002217,2]
[385555321,1757895032468,-178.03229134,0.0002217,2]
[385555322,1757895032562,-62.02355757,0.0002217,2]
[385555323,1757895032571,-908.31873,0.000222,2]
[385555324,1757895032581,-908.31873,0.0002223,2]
[385555325,1757895032590,-908.31873,0.0002226,2]
[385555326,1757895032599,-908.31872,0.0002229,2]
[385555327,1757895032608,-231.55,0.0002249,2]
[385555328,1757895032621,-1200.0,0.00022799,2]
[385555329,1757895032631,-590.0,0.000228,2]
[385555330,1757895032640,-487.728467,0.00023035,2]
[385555331,1757895032650,-231.55,0.00023152,2]
[385555332,1757895032659,-1200.0,0.00023369,2]
[385555333,1757895032670,-168.16,0.00023372,2]
[385555334,1757895032680,-287.61899177,0.00023536,2]
[385555335,1757895032689,-160.0,0.00023614,2]
[385555336,1757895032703,-160.0,0.00023614,2]
[385555337,1757895032713,-231.55,0.00023813,2]
[385555338,1757895032723,-578.0,0.0002398,2]
[385555339,1757895032732,-231.55,0.00024474,2]
[385555340,1757895032742,-737.57,0.00024497,2]
[385555341,1757895032751,-257.34,0.00024658,2]
[385555342,1757895032761,-266.92041006,0.00024675,2]
[385555343,1757895032770,-150.0,0.00024734,7]
[385555344,1757895032780,-150.0,0.0002474,2]
[385555345,1757895032790,-163.86,0.0002474,2]
[385555346,1757895032800,-424.0,0.00024743,2]
[385555347,1757895032809,-171.65,0.00024743,2]
[385555349,1757895032819,-200.0,0.0002476,2]
[385555351,1757895032828,-322.6107,0.0002476,2]
[385555353,1757895032838,-479.48278901,0.0002476,2]
[385555355,1757895032847,-152.13742113,0.0002476,2]
[385555357,1757895032857,-151.0,0.0002476,2]
[385555359,1757895032867,-151.0,0.0002476,2]
[385555362,1757895032877,-151.0,0.0002476,2]
[385555364,1757895032887,-151.0,0.0002476,2]
[385555367,1757895032896,-151.0,0.0002476,2]
[385555371,1757895032906,-151.0,0.0002476,2]
[385555374,1757895032915,-151.0,0.0002476,2]
[385555377,1757895032924,-151.0,0.0002476,2]
[385555380,1757895032934,-285.80107484,0.0002476,2]
[385555383,1757895032943,-152.97,0.00024775,2]
[385555386,1757895032952,-151.48,0.00024775,2]
[385555389,1757895032962,-150.09,0.00024775,2]
[385555391,1757895032971,-150.99,0.00024775,2]
[385555393,1757895032980,-151.89,0.00024775,2]
[385555395,1757895032989,-250.0,0.00024781,2]
[385555397,1757895032999,-1680.0,0.0002487,2]
[385555399,1757895033008,-515.71559737,0.00024872,2]
[385555401,1757895033017,-151.7,0.000249,2]
[385555403,1757895033026,-151.95,0.000249,2]
[385555405,1757895033035,-3248.98564287,0.000249,2]
[385555407,1757895033049,-2742.27786402,0.000249,2]
[385555409,1757895033059,-298.26089446,0.00024905,2]
[385555411,1757895033068,-231.55,0.00025136,2]
[385555413,1757895033077,-405.85951718,0.00025158,2]
[385555415,1757895033087,-566.0,0.0002517,2]
[385555417,1757895033096,-150.0,0.00025205,2]
[385555419,1757895033106,-200.0,0.00025308,2]
[385555421,1757895033116,-220.24230762,0.0002532,2]
[385555423,1757895033127,-803.85,0.00025408,2]
[385555425,1757895033136,-258.30887931,0.00025435,2]
[385555427,1757895033146,-629.18368372,0.00025436,2]
[385555429,1757895033155,-237.02,0.00025501,2]
[385555431,1757895033166,-482.6,0.00025503,2]
[385555434,1757895033175,-500.0,0.00025535,2]
[385555436,1757895033184,-500.0,0.00025535,2]
[385555438,1757895033194,-500.0,0.00025535,2]
[385555440,1757895033203,-500.0,0.00025535,2]
[385555442,1757895033213,-500.0,0.00025535,2]
[385555444,1757895033222,-500.0,0.00025535,2]
[385555446,1757895033233,-563.40441347,0.00025535,2]
[385555448,1757895033243,-19489.96322794,0.00025536,2]
[385555450,1757895033254,-1126.24824728,0.00025536,2]
[385555478,1757895038328,-955.79929154,0.00025536,2]
[385555495,1757895038476,-12243.66923324,0.00025536,2]
[385555497,1757895038486,-296.37545099,0.00025549,2]
[385555498,1757895038496,-768.73,0.00025557,2]
[385555499,1757895038506,-334.44202268,0.00025664,2]
[385555500,1757895038515,-2053.68,0.00025769,2]
[385555501,1757895038525,-372.50859437,0.00025779,2]
[385555502,1757895038534,-649.0,0.00025874,2]
[385555503,1757895038544,-410.57516605,0.00025894,2]
[385555504,1757895038554,-150.81,0.0002594,2]
[385555505,1757895038564,-161.77,0.0002594,4]
[385555506,1757895038574,-5078.64,0.00025959,2]
[385555507,1757895038585,-213.03960979,0.00026001,2]
[385555508,1757895038595,-160.0,0.00026006,2]
[385555509,1757895038605,-448.64173774,0.00026009,2]
[385555510,1757895038615,-152.17,0.00026071,2]
[385555511,1757895038628,-152.83,0.00026071,2]
[385555512,1757895038638,-150.08,0.00026071,2]
[385555513,1757895038647,-532.41,0.00026071,2]
[385555514,1757895038657,-486.70830943,0.00026124,2]
[385555515,1757895038669,-334.5472959,0.00026129,2]
[385555516,1757895038679,-1425.0,0.00026164,2]
[385555517,1757895038688,-524.77488112,0.00026238,2]
[385555518,1757895038699,-309.29654756,0.00026274,2]
[385555519,1757895038708,-2000.0,0.000263,2]
[385555520,1757895038718,-1658.56682828,0.000263,2]
[385555521,1757895038727,-554.0,0.0002635,2]
[385555522,1757895038737,-562.8414528,0.00026353,2]
[385555523,1757895038746,-150.0,0.00026384,2]
[385555524,1757895038756,-150.0,0.00026384,2]
[385555525,1757895038765,-3469.12954158,0.00026456,2]
[385555526,1757895038801,-1530.87045842,0.00026456,2]
[385555527,1757895038811,-600.90802449,0.00026468,2]
[385555528,1757895038822,-1425.0,0.00026582,2]
[385555529,1757895038831,-334.29916503,0.00026583,2]
[385555530,1757895038996,-304.67543115,0.00026583,2]
[385555531,1757895039006,-850.22456885,0.00026591,2]
[385555576,1757895040552,-149.76543115,0.00026591,2]
[385555577,1757895040625,-4320.49593149,0.00026591,2]
[385555578,1757895040636,-3755.29406851,0.00026591,2]
[385555579,1757895040645,-150.99,0.00026591,2]
[385555580,1757895040655,-1425.0,0.00026694,2]
[385555581,1757895040665,-677.04116786,0.00026698,2]
[385555582,1757895040674,-513.0,0.000268,2]
[385555583,1757895040683,-715.10773955,0.00026813,2]
[385555584,1757895040693,-1425.0,0.00026851,2]
[385555585,1757895040708,-232.1111,0.000269,2]
[385555586,1757895040717,-277.1277,0.000269,2]
[385555587,1757895040729,-150.0,0.00026907,2]
[385555588,1757895040739,-753.17431124,0.00026927,2]
[385555589,1757895040749,-17000.0,0.00027,2]
[385555590,1757895040758,-791.24088293,0.00027042,2]
[385555591,1757895040767,-1993.0,0.00027128,2]
[385555592,1757895040776,-829.30745461,0.00027157,2]
[385555593,1757895040785,-238.37926812,0.00027165,2]
[385555594,1757895040795,-1623.52483311,0.00027165,2]
[385555595,1757895040804,-5131.48119244,0.00027165,2]
[385555596,1757895040813,-5000.0,0.00027176,2]
[385555597,1757895040822,-2500.0,0.00027176,2]
[385555598,1757895040831,-1000.0,0.00027176,2]
[385555599,1757895040840,-4516.6863196,0.00027196,2]
[385555600,1757895040849,-12892.4070619,0.00027196,2]
[385555601,1757895040861,-5360.3964902,0.00027196,2]
[385555602,1757895040870,-560.0,0.000272,2]
[385555603,1757895040882,-150.44,0.00027245,2]
[385555604,1757895040891,-265.05668575,0.00027254,2]
[385555605,1757895040900,-500.0,0.00027254,2]
[385555606,1757895040910,-239.30541684,0.00027254,2]
[385555607,1757895040919,-19262.22226274,0.00027255,2]
[385555764,1757895043534,-200.68724126,0.00027255,2]
[385555767,1757895043555,-608.78476669,0.00027255,2]
[385555880,1757895045650,-5798.92422368,0.00027255,2]
[385555881,1757895045662,-18327.96224256,0.00027255,2]
[385555882,1757895045672,-7328.24120441,0.00027255,2]
[385555883,1757895045810,-27712.6942433,0.00027255,2]
[385555884,1757895045822,-479.75,0.00027255,2]
[385555885,1757895045833,-57759.635,0.00027255,2]
[385555925,1757895046373,-8463.60000006,0.00027255,2]
[385555927,1757895046386,-2521.0354325,0.00027255,2]
[385556007,1757895047110,-15906.15117702,0.00027255,2]
[385556009,1757895047121,-59996.79467197,0.00027255,2]
[385556011,1757895047134,-780.18436357,0.00027255,2]
[385556555,1757895052835,-423.88,0.00027245,3]
[385556596,1757895053220,-2355.27500867,0.00027255,2]
[385556611,1757895060492,-162.53520569,0.00027155,2]
[385556612,1757895060531,-12837.68044028,0.00027255,2]
[385556613,1757895068540,-517.0,0.000272,2]
[385556614,1757895068572,-102.47026542,0.00027205,2]
[385556615,1757895068607,-147.52973458,0.00027205,2]
[385556616,1757895076525,-500.0,0.00025535,2]
[385556617,1757895076560,-314.33687635,0.00025535,2]
[385556618,1757895084113,-226.4548603,0.00025535,2]
[385556619,1757895084141,-401.70271813,0.00026338,3]
[385556620,1757895084182,-264.29728187,0.00026338,3]
[385556621,1757895093751,-150.55,0.00025535,2]
[385556622,1757895093785,-300.0,0.000267,9]
[385556623,1757895093847,-619.51243873,0.000268,9]
[385556624,1757895101345,-5000.0,0.00026326,2]
[385556625,1757895101377,-80.48756127,0.000268,9]
[385556626,1757895101406,-1100.0,0.000269,9]
[385556627,1757895101473,-1698.02782203,0.00026994,2]
[385556628,1757895109623,-1000.0,0.00026992,2]
[385556629,1757895109658,-101.97217797,0.00026994,2]
[385556630,1757895109690,-168.0,0.00027133,2]
[385556631,1757895109723,-1000.0,0.00027165,2]
[385556632,1757895109757,-300.0,0.00027254,2]
[385556633,1757895109786,-161.33193755,0.00027254,2]
[385556634,1757895109932,-3684.96654035,0.00027255,2]
[385556635,1757895116702,-533.29318579,0.000268,2]
[385556636,1757895124291,-234.70681421,0.000268,2]
[385556637,1757895124335,-130.58637158,0.00026893,2]
[385556638,1757895132003,-21.91362842,0.00026893,2]
[385556639,1757895132041,-176.1247534,0.00027217,2]
[385556640,1757895139457,-151.84069497,0.00027165,2]
[385556641,1757895147702,-61.19891482,0.00027165,2]
[385556642,1757895147761,-28.60217036,0.00027165,2]
[385556643,1757895156342,-250.0,0.0002713,2]
[385556644,1757895164549,-250.0,0.0002713,2]
[385556645,1757895164572,-500.0,0.0002713,2]
[385556646,1757895172528,-151.0,0.00027165,2]
[385556648,1757895180084,-250.0,0.000249,2]
[385556649,1757895187637,-1000.0,0.000249,2]
[385556650,1757895196915,-151.0,0.000249,2]
[385556651,1757895204709,-250.0,0.000249,2]
[385556652,1757895212279,-1000.0,0.000249,2]
[385556653,1757895219447,-151.0,0.000249,2]
[385556654,1757895227627,-250.0,0.000249,2]
[385556655,1757895236542,-1000.0,0.000249,2]
[385556656,1757895244366,-344.65116263,0.000249,2]
[385556657,1757895252447,-151.0,0.000249,2]
[385556658,1757895260001,-250.0,0.000249,2]
[385556659,1757895270678,-1000.0,0.000249,2]
[385556660,1757895278527,-160.0,0.000249,2]
[385556661,1757895286180,-6.46483337,0.000249,2]
[385556662,1757895286205,-138.07033326,0.000249,2]
[385556663,1757895293742,-500.0,0.000252,2]
[385556664,1757895301583,-283.0,0.000252,2]
[385556665,1757895301612,-213.03960979,0.000252,2]
[385556666,1757895301705,-7.92078042,0.000252,2]
[385556667,1757895308997,-250.0,0.000252,2]
[385556668,1757895316653,-160.0,0.000252,2]
[385556669,1757895324776,-67.07921958,0.000252,2]
[385556670,1757895324823,-26.0132421,0.00026189,2]
[385556671,1757895332925,-177.81853413,0.00026189,2]
[385556672,1757895332956,-300.0,0.00026267,2]
[385556673,1757895333016,-44.36293174,0.00026268,2]
[385556674,1757895340146,-250.0,0.00026268,2]
[385556675,1757895348288,-151.0,0.00026268,2]
[385556676,1757895356671,-500.0,0.00026268,2]
[385556677,1757895364889,-160.0,0.00026268,2]
[385556678,1757895372565,-1000.0,0.00026268,2]
[385556679,1757895374528,246.54,0.00026253,120]
[385556680,1757895374741,246.54,0.00029535,120]
[385556682,1757895380842,-250.0,0.000249,2]
[385556684,1757895388071,-298.17148204,0.000249,2]
[385556685,1757895396330,-160.0,0.000249,2]
[385556686,1757895404480,-250.0,0.000249,2]
[385556687,1757895413365,-1000.0,0.000249,2]
[385556688,1757895420040,-500.0,0.000249,2]
[385556689,1757895427959,-167.28440368,0.000249,2]
[385556690,1757895436664,-250.0,0.000249,2]
[385556691,1757895443755,-1000.0,0.000249,2]
[385556692,1757895452154,-500.0,0.000249,2]
[385556693,1757895453356,3299.74,0.000302,120]
[385556694,1757895460330,-250.0,0.000249,2]
[385556695,1757895468046,-1000.0,0.000249,2]
[385556696,1757895476899,-84.42881791,0.000249,2]
[385556697,1757895476922,-148.21417245,0.000249,2]
[385556698,1757895484363,-213.03960979,0.000249,2]
[385556699,1757895484410,-1360.47049685,0.000252,2]
[385556700,1757895493082,-277.35679052,0.000252,2]
[385556701,1757895500711,-287.61899177,0.000252,2]
[385556702,1757895508703,-74.55372086,0.000252,2]
[385556703,1757895508737,-149.15345274,0.00026228,2]
[385556704,1757895510616,164.87,0.00013112,2]
[385556705,1757895510727,164.87,0.00013802,2]
[385556706,1757895510957,164.87,0.00014492,2]
[385556707,1757895511230,164.87,0.00015183,2]
[385556708,1757895511734,164.87,0.00015873,2]
[385556709,1757895511964,164.87,0.00016563,2]
[385556710,1757895512202,164.87,0.00017253,2]
[385556711,1757895512372,164.87,0.00017943,2]
[385556712,1757895512603,164.87,0.00018633,2]
[385556713,1757895516663,-144.42654756,0.00019323,2]
[385556714,1757895516686,-20.44345244,0.00019323,2]
[385556715,1757895524505,-155.87051982,0.00020013,2]
[385556716,1757895524527,-8.99948018,0.00020013,2]
[385556717,1757895532155,-164.87,0.00020703,2]
[385556718,1757895532187,-21.27616365,0.00021394,2]
[385556719,1757895540587,-143.59383635,0.00021394,2]
[385556720,1757895540624,-2.59120979,0.00022084,2]
[385556721,1757895548562,-162.27879021,0.00022084,2]
[385556722,1757895548592,-10.57241958,0.00022774,2]
[385556723,1757895548699,-154.29758042,0.00022774,2]
[385556724,1757895556504,-151.0,0.00023464,2]
[385556726,1757895564302,-13.87,0.00023464,2]
[385556727,1757895564332,-164.87,0.00024154,2]
[385556728,1757895564380,-142.52,0.00024844,2]
[385556729,1757895572218,-22.35,0.00024844,2]
[385556730,1757895572262,-106.3,0.000249,2]
[385556731,1757895580061,-500.0,0.000249,2]
[385556732,1757895587776,-250.0,0.000249,2]
[385556733,1757895595761,-151.0,0.000249,2]
[385556734,1757895604444,-500.0,0.000249,2]
[385556735,1757895611909,-250.0,0.000249,2]
[385556736,1757895620137,-151.0,0.000249,2]
[385556737,1757895628674,-544.30255015,0.000249,2]
[385556738,1757895636506,-500.0,0.000249,2]
[385556741,1757895644553,-250.0,0.000249,2]
[385556742,1757895653182,-151.0,0.000249,2]
[385556743,1757895660824,-500.0,0.000249,2]
[385556745,1757895668600,-250.0,0.000249,2]
[385556746,1757895675700,-213.03960979,0.00024898,2]
[385556747,1757895675741,-73.92078042,0.000249,2]
[385556748,1757895684437,-500.0,0.000249,2]
[385556751,1757895692624,-250.0,0.000249,2]
[385556752,1757895700191,-151.0,0.000249,2]
[385556753,1757895708112,-500.0,0.000249,2]
[385556755,1757895716531,-45.25159039,0.000249,2]
[385556756,1757895716569,-409.49681922,0.000249,2]
[385556757,1757895724431,-250.0,0.000249,2]
[385556758,1757895725148,500.0,0.00013699,2]
[385556759,1757895733087,-151.0,0.000249,2]
[385556762,1757895741055,-500.0,0.000249,2]
[385556763,1757895749693,-500.0,0.000249,2]
[385556764,1757895756777,-151.0,0.000249,2]
[385556767,1757895765191,-250.0,0.000249,2]
[385556768,1757895772505,-151.0,0.00024634,2]
[385556769,1757895780333,-500.0,0.00024634,2]
[385556772,1757895788346,-200.0,0.00024633,2]
[385556773,1757895788409,-100.0,0.00024633,2]
[385556774,1757895796819,-152.75041417,0.00024634,2]
[385556777,1757895804648,-250.0,0.00024634,2]
[385556778,1757895812612,-151.0,0.00024634,2]
[385556781,1757895820282,-500.0,0.00024634,2]
[385556782,1757895828117,-500.0,0.00024634,2]
[385556783,1757895836263,-151.0,0.00024634,2]
[385556784,1757895844187,-250.0,0.00024634,2]
[385556785,1757895851666,-500.0,0.000246,2]
[385556786,1757895859194,-151.0,0.000246,2]
[385556787,1757895868070,-250.0,0.000246,2]
[385556788,1757895875683,-52.0,0.000246,2]
[385556789,1757895875711,-47.0,0.000246,2]
[385556790,1757895884596,-500.0,0.00024,2]
[385556791,1757895891216,-151.0,0.00024,2]
[385556792,1757895899327,-250.0,0.00024,2]
[385556793,1757895907675,-101.79121015,0.00024,2]
[385556794,1757895907710,-83.37796991,0.00024633,2]
[385556795,1757895907759,-129.66163988,0.00024633,2]
[385556796,1757895916763,-151.0,0.00024,2]
[385556797,1757895923839,-500.0,0.00024,2]
[385556799,1757895931436,-151.0,0.00024,2]
[385556800,1757895939196,-439.95014587,0.0002,2]
[385556801,1757895947773,-151.0,0.0002,2]
[385556803,1757895957745,-195.81109513,0.0002,2]
[385556804,1757895957791,-108.37780974,0.0002,2]
[385556805,1757895965230,-151.0,0.0002,2]
[385556806,1757895972358,-500.0,0.0002,2]
[385556807,1757895979385,-218.14470826,0.0002,2]
[385556808,1757895979419,-63.71058348,0.0002,2]
[385556809,1757895988552,-500.0,0.0002,2]
[385556810,1757895996553,-213.238759,0.00022,4]
[385556811,1757895996577,-573.522482,0.00022,4]
[385556812,1757896003725,-500.0,0.00022,4]
[385556814,1757896011892,-477.522518,0.00022,4]
[385556815,1757896011938,-44.954964,0.00022,4]
[385556817,1757896019177,-500.0,0.00022,4]
[385556819,1757896027586,-408.82755452,0.0002,2]
[385556820,1757896027622,-182.34489096,0.00022,4]
[385556821,1757896035784,-245.23828304,0.00022,4]
[385556822,1757896035833,-9.52343392,0.00024,2]
[385556825,1757896043022,-1000.0,0.00024,2]
[385556826,1757896050119,-33.20379533,0.00024,2]
[385556827,1757896050153,-433.59240934,0.00024,2]
[385556828,1757896051173,353.99375185,0.000166,2]
[385556829,1757896057217,-1000.0,0.00024,5]
[385556831,1757896064274,-1000.0,0.00024,5]
[385556833,1757896068309,4357.49625004,0.00013,2]
[385556834,1757896071429,-255.17220923,0.00024,2]
[385556835,1757896073107,1750.07455155,0.000181,2]
[385556836,1757896079126,-186.4478036,0.00024,2]
[385556837,1757896079154,-127.1043928,0.00024,2]
[385556838,1757896086393,-1000.0,0.00024,5]
[385556841,1757896090582,200.0,0.0001634,2]
[385556842,1757896093487,-500.0,0.00024,5]
[385556843,1757896100679,-1000.0,0.00024,5]
[385556844,1757896101293,195.53525742,7.888e-05,2]
[385556845,1757896107826,-231.5275678,0.00024,5]
[385556847,1757896115029,-213.03960979,0.00024,2]
[385556848,1757896115076,-73.92078042,0.00024,5]
[385556850,1757896117028,1760.18873549,0.00010136,2]
[385556851,1757896119285,1542.77097957,0.00019,2]
[385556852,1757896120581,5486.72475714,0.0001,2]
[385556853,1757896122067,-194.55165178,0.00024,5]
[385556854,1757896122096,-10.55446629,0.00024,2]
[385556855,1757896122137,-310.91541921,0.00024,2]
[385556856,1757896122598,6684.21239423,0.000302,120]
[385556857,1757896129699,-747.8093786,0.000241,2]
[385556860,1757896137265,-775.47832561,0.000241,2]
[385556861,1757896144894,-314.61053589,0.000241,2]
[385556867,1757896152041,-151.0,0.000241,2]
[385556869,1757896159132,-151.0,0.000241,2]
[385556887,1757896167435,-151.0,0.000241,2]
[385556921,1757896174350,-244.76935479,0.000241,2]
[385556923,1757896181938,-269.49411311,0.000241,2]
[385556925,1757896189037,-372.10909809,0.000241,2]
[385556928,1757896196172,-1520.61243873,0.000241,2]
[385556930,1757896205206,-593.80718233,0.000241,2]
[385556931,1757896205234,-414.35931396,0.0002421,2]
[385556932,1757896205287,-1204.71024673,0.0002421,2]
[385556934,1757896212329,-3224.2490879,0.00023151,2]
[385556935,1757896212357,-2425.13061847,0.0002421,2]
[385556936,1757896212385,-786.761241,0.00024481,2]
[385556937,1757896212415,-222.55704812,0.00024481,2]
[385556938,1757896212474,-754.96546988,0.00024481,2]
[385556940,1757896225057,-972.538138,0.00024481,2]
[385556941,1757896225088,-152.30206567,0.00024634,2]
[385556942,1757896225210,-14512.97177636,0.00024634,2]
[385556950,1757896231665,-586.67635681,0.0002465,2]
[385556951,1757896231677,-164.179974,0.0002465,2]
[385556952,1757896231688,-205.87,0.00024658,2]
[385556953,1757896231699,-1722.43813179,0.000248,2]
[385556954,1757896231711,-1489.77199533,0.000249,2]
[385556955,1757896231725,-189.16798645,0.000249,2]
[385556956,1757896231736,-3255.70827713,0.000249,2]
[385556957,1757896231771,-326.8887711,0.000249,2]
[385556958,1757896231828,-761.0,0.000249,2]
[385556959,1757896231883,-331.88434532,0.000249,2]
[385556960,1757896231897,-370.53545966,0.000249,2]
[385556961,1757896231941,-347.09452827,0.000249,2]
[385556962,1757896231952,-35.37887965,0.00025,2]
[385557025,1757896237583,-1964.62112035,0.00025,2]
[385557026,1757896237594,-850.0,0.00025099,2]
[385557027,1757896237606,-21818.61983903,0.000251,2]
[385557028,1757896237618,-690.0,0.000254,2]
[385557029,1757896237630,-786.761241,0.000255,4]
[385557030,1757896237642,-977.522518,0.000255,4]
[385557031,1757896237653,-972.538138,0.000255,4]
[385557032,1757896237663,-164.87,0.00025534,2]
[385557033,1757896237675,-578.6,0.00025663,2]
[385557034,1757896237686,-666.0,0.00025693,3]
[385557035,1757896237696,-164.89,0.00025698,2]
[385557036,1757896237708,-261.17,0.00025728,2]
[385557037,1757896237719,-150.0,0.0002576,7]
[385557038,1757896237730,-250.0,0.00025861,2]
[385557039,1757896237744,-1288.53,0.00026,2]
[385557040,1757896237756,-168.41,0.00026037,2]
[385557041,1757896237768,-719.4272153,0.00026097,2]
[385557042,1757896237781,-150.0,0.00026137,2]
[385557043,1757896237793,-150.0,0.00026137,2]
[385557044,1757896237802,-150.0,0.00026137,2]
[385557045,1757896237812,-150.0,0.00026137,2]
[385557046,1757896237823,-150.0,0.00026137,2]
[385557047,1757896237832,-150.0,0.00026137,2]
[385557048,1757896237842,-150.0,0.00026137,2]
[385557049,1757896237851,-513.0,0.00026164,2]
[385557050,1757896237861,-150.0,0.00026178,2]
[385557051,1757896237871,-164.87,0.00026224,2]
[385557052,1757896237880,-918.51654726,0.00026228,2]
[385557053,1757896237890,-344.65116263,0.00026252,2]
[385557054,1757896237900,-151.0,0.00026252,2]
[385557055,1757896237909,-277.35679052,0.00026252,2]
[385557056,1757896238328,-6693.72706826,0.00026268,2]
[385557057,1757896238365,-471.86,0.00026341,2]
[385557058,1757896238387,-803.49,0.00026341,2]
[385557059,1757896238403,-471.86,0.00026341,2]
[385557060,1757896238412,-250.0,0.0002651,2]
[385557061,1757896238421,-4014.95491188,0.00026565,2]
[385557062,1757896238431,-677.0,0.0002658,2]
[385557063,1757896238440,-400.0,0.000266,9]
[385557064,1757896238448,-395.93382372,0.00026699,2]
[385557065,1757896238458,-900.0,0.000267,9]
[385557066,1757896238467,-160.5259097,0.00026754,2]
[385557067,1757896238477,-1400.0,0.000268,9]
[385557068,1757896238487,-1800.0,0.000269,9]
[385557069,1757896238497,-165.0,0.00026955,2]
[385557070,1757896238507,-1166.66666,0.0002698,2]
[385557071,1757896238516,-1722.43813179,0.00026997,2]
[385557072,1757896238525,-1166.66667,0.0002702,2]
[385557073,1757896238534,-6370.16433377,0.00027039,2]
[385557074,1757896238543,-1446.593,0.00027049,2]
[385557075,1757896238553,-1539.9323,0.00027056,2]
[385557076,1757896238562,-5224.3219,0.00027056,2]
[385557077,1757896238572,-2500.0,0.00027056,2]
[385557078,1757896238582,-1000.0,0.00027056,2]
[385557079,1757896238593,-179.90732217,0.00027056,2]
[385557080,1757896238603,-515.71559737,0.00027063,2]
[385557081,1757896238612,-160.0,0.00027063,2]
[385557082,1757896238621,-1425.0,0.00027093,2]
[385557083,1757896238631,-1425.0,0.00027097,2]